[Event "SixDays GM March 2024"]
[Site "Budapest"]
[Date "2024.04.03"]
[Round "7.3"]
[White "Mayank Chakraborty"]
[Black "Grover, Sahaj"]
[Result "1-0"]
[ECO "C55"]
[WhiteElo "2386"]
[BlackElo "2514"]
[Annotator "TA"]
[PlyCount "161"]
[EventDate "2024.03.26"]
[EventType "tourn"]
[EventCountry "HUN"]
[SourceTitle "playchess.com"]
[Source "ChessBase"]
[SourceQuality "1"]
[TimeControl "5400+30"]

{[%evp 9,161,13,27,27,30,24,33,13,10,-10,-13,-13,-17,-18,-20,-22,0,-21,-25,-14,-21,-16,-7,-12,-4,-29,-27,-29,-25,-26,-24,-21,-26,-66,-66,-66,-66,-66,-66,-66,-59,-57,-52,-52,-43,-43,-49,-45,-45,-98,-51,-50,-51,-51,-51,-51,-34,-35,-34,-34,-35,-181,-193,-194,-102,-102,-102,-102,-102,-102,-102,-187,-106,-106,-102,-155,-155,-155,-97,-101,-101,-101,-101,-107,-26,-25,-25,-58,0,-16,0,-58,-58,-58,-58,-58,-58,-49,-57,-58,-58,-58,-58,-58,-58,-58,-58,-58,-58,-58,0,-64,-51,-72,-51,-72,0,-87,-64,-65,-58,-88,-88,-88,-12,-12,0,0,0,-13,-13,-12,237,204,4134,2916,4463,491,29962,29963,29963,29962,29967,29967,29968,29967,29969,29969,29967,29965,29967,29970,29963,29967]} 1. e4 {[%emt 0:00:02]} e5 {[%emt 0:18:33]} 2. Nf3 {[%emt 0:00:04]} Nc6 {[%emt 0:00:08]} 3. Bc4 {[%emt 0:00:06]} Nf6 {[%emt 0:00:07]} 4. d3 {[%emt 0:00:07]} h6 {[%emt 0:00:06]} 5. a3 {[%emt 0:05:39]} d6 {[%emt 0:00:41]} 6. Nc3 {[%emt 0:00:12]} g5 {[%emt 0:01:15]} 7. Be3 {[%emt 0:04:43]} Bg7 {[%emt 0:08:33]} 8. O-O {[%emt 0:04:45] White is slightly better.} Bg4 {[%emt 0:06:35][%cal Oc6d4]} 9. Nd5 {[%emt 0:09:08] [#]} Nd4 $1 {[%emt 0:06:10]} 10. Bxd4 {[%emt 0:03:36]} exd4 {[%emt 0:00:25]} 11. Nxf6+ {[%emt 0:01:47]} Qxf6 {[%emt 0:03:46]} 12. h3 {[%emt 0:00:29]} h5 {[%emt 0:12:11]} 13. Re1 {[%emt 0:04:40][%cal Oe4e5] Threatens to win with e5!} (13. hxg4 $5 hxg4 14. Nh4 Rxh4 (14... gxh4 15. Qxg4 Rh6 16. Rae1 $14) 15. g3 $11) 13... Bxf3 {[%emt 0:08:03]} 14. Qxf3 {[%emt 0:00:02]} Qxf3 {[%emt 0:00:07]} 15. gxf3 {[%emt 0:00:01]} Be5 {[%emt 0:00:07]} 16. Kf1 {[%emt 0:00:34]} Ke7 {[%emt 0:04:29]} 17. Ke2 {[%emt 0:00:17]} c6 {[%emt 0:01:58]} 18. a4 {[%emt 0:00:13]} f5 {[%emt 0:02:40]} 19. b4 {[%emt 0:02:48]} Rad8 {[%emt 0:04:31]} 20. b5 {[%emt 0:01:34]} d5 {[%emt 0:00:05]} 21. exd5 {[%emt 0:00:28] White is weak on the dark squares} cxd5 {[%emt 0:00:06]} 22. Bb3 {[%emt 0:01:49]} Kd6 {[%emt 0:00:25]} 23. Rg1 {[%emt 0:01:23]} Bf4 {[%emt 0:00:58]} 24. Rae1 {[%emt 0:00:30]} Rc8 {[%emt 0:03:23]} 25. Kf1 {[%emt 0:03:25]} Rcg8 {[%emt 0:02:26]} 26. Kg2 {[%emt 0:04:08]} Rh6 {[%emt 0:00:37]} 27. Re2 {[%emt 0:01:45]} g4 {[%emt 0:01:03]} 28. fxg4 {[%emt 0:07:46]} fxg4 {[%emt 0:00:27]} 29. Kf1 {[%emt 0:05:06]} (29. hxg4 $15 hxg4 30. Rh1) 29... g3 {[%emt 0:00:49]} (29... Be5 $17) 30. fxg3 $1 $15 {[%emt 0:02:30]} Bxg3 {[%emt 0:01:26] Strongly threatening ...Rf6+.} (30... Rxg3 31. Rxg3 Bxg3 32. Re8 $11) 31. Reg2 $1 {[%emt 0:00:41]} h4 {[%emt 0:00:56] ...Re6 is the strong threat.} 32. Ke2 {[%emt 0:00:09]} Re6+ {[%emt 0:03:00]} 33. Kd1 {[%emt 0:00:06]} Rge8 {[%emt 0:01:29]} 34. Kc1 {[%emt 0:00:21]} Kc5 {[%emt 0:05:23]} 35. Rxg3 {[%emt 0:01:24]} ({Better is} 35. Kb2 $15) 35... hxg3 $19 {[%emt 0:00:17]} 36. Rxg3 $15 {[%emt 0:00:02][%mdl 4096] Endgame. KRR-KRB} Re3 {[%emt 0:03:01]} (36... Re2 $1 $19 {aiming for ...Kb4.} 37. b6 axb6) 37. Rg5 {[%emt 0:02:23]} R8e5 {[%emt 0:00:07]} (37... Rxh3 38. Rxd5+ Kb4 39. Kb2 $16 (39. Rxd4+ Ka3 $11)) 38. Rg7 {[%emt 0:00:11]} Re7 {[%emt 0:00:38]} (38... Rxh3 $6 39. Rxb7 Kb4 (39... Re1+ 40. Kb2 $16) 40. Kb2 $11 (40. Rxa7 $2 Ka3 $19)) 39. Rg5 {[%emt 0:00:15]} R3e5 {[%emt 0:00:11]} (39... Rxh3 $6 40. Rxd5+ Kb4 41. Rxd4+ Ka3 42. a5 Rh1+ 43. Kd2 $11) 40. Rg3 {[%emt 0:01:59]} (40. Rg8 $17) 40... Rh5 {[%emt 0:00:57]} (40... Re2 $1 $19 {...Kb4 would now be deadly.} 41. h4 b6) 41. Kb2 $17 {[%emt 0:00:35]} Reh7 {[%emt 0:00:04]} 42. Ka3 {[%emt 0:01:47]} ({White should play} 42. Rg8) 42... Rxh3 {[%emt 0:01:38]} 43. Rg8 {[%emt 0:01:02] [#]} Rc7 {[%emt 0:00:17]} (43... Rh8 $142 $1 {[%cal Rh8g8]} 44. Rg7 R3h7) 44. Rg5 {[%emt 0:00:29]} Rd7 {[%emt 0:00:05]} 45. Rg8 {[%emt 0:00:06] Prevents Rh8.} Rhh7 {[%emt 0:00:06]} 46. Ra8 {[%emt 0:00:55]} Rh1 {[%emt 0:02:16]} (46... Rhg7 $17) 47. Rc8+ $1 $11 {[%emt 0:00:19]} Kd6 {[%emt 0:00:49]} 48. Ra8 {[%emt 0:01:17]} Kc5 {[%emt 0:00:23]} (48... Rc7 49. Rxa7 Kc5 50. Ra8 $11) 49. Rc8+ $1 {[%emt 0:00:06]} Kd6 {[%emt 0:00:02]} 50. Ra8 {[%emt 0:00:06]} b6 {[%emt 0:00:32]} (50... Rc7 51. Rxa7 Kc5 52. Ra8 $11) 51. Rc8 {[%emt 0:00:36]} Re1 {[%emt 0:00:57]} 52. Rh8 {[%emt 0:01:02]} Re6 {[%emt 0:00:37]} 53. Kb4 {[%emt 0:00:19]} Rf6 {[%emt 0:00:18]} 54. Re8 {[%emt 0:01:14]} Rf2 {[%emt 0:00:36]} 55. Ka3 {[%emt 0:00:58]} Rh2 {[%emt 0:00:30]} 56. Kb4 {[%emt 0:01:07]} Rhh7 {[%emt 0:00:31]} 57. Re1 {[%emt 0:00:49]} Rc7 {[%emt 0:00:28]} 58. Rg1 {[%emt 0:01:07]} Rhg7 {[%emt 0:00:32]} 59. Rh1 {[%emt 0:00:11]} Rh7 {[%emt 0:00:03]} 60. Rg1 {[%emt 0:00:08]} Ke5 {[%emt 0:00:52]} 61. Ka3 {[%emt 0:03:02]} Rc5 {[%emt 0:00:31]} 62. Rf1 {[%emt 0:00:43]} Rcc7 {[%emt 0:00:22]} (62... Rc8 $17) 63. Rf2 {[%emt 0:01:18]} (63. Rg1 $1 $11 {remains equal.}) 63... Rh3 {[%emt 0:00:29]} 64. Re2+ {[%emt 0:00:26]} Kd6 {[%emt 0:00:28]} 65. Kb4 {[%emt 0:00:11]} Rhh7 {[%emt 0:00:15]} 66. Rg2 {[%emt 0:01:05]} Rc5 {[%emt 0:00:16]} (66... Rcd7 $17) 67. Rg6+ {[%emt 0:02:05]} Kc7 {[%emt 0:00:17]} 68. Rg4 {[%emt 0:00:28]} Kd6 {[%emt 0:00:58]} 69. Rg6+ {[%emt 0:00:09]} Ke5 {[%emt 0:00:29]} 70. a5 {[%emt 0:00:27]} Kf5 $2 {[%emt 0:00:49]} (70... Rb7 $11 {and Black has nothing to worry.}) 71. axb6 $18 {[%emt 0:01:09]} Rxc2 $2 {[%emt 0:00:47]} (71... Rc8 72. Rd6 axb6 73. Rxd5+ (73. Bxd5 Ke5 $17) 73... Kf4) 72. bxa7 {[%emt 0:02:02]} ({Not} 72. Rd6 Rb2 $18) 72... Rxa7 {[%emt 0:00:08]} 73. b6 {[%emt 0:03:33]} (73. Bxc2 $142 {Threatening mate with Rc6.} Kxg6 74. b6) 73... Ra8 {[%emt 0:00:04]} (73... Rcc7 $18 74. bxa7 (74. bxc7 Rxc7 75. Rd6 Rb7+ 76. Ka3 Kf4 $18) 74... Rxa7) 74. Bxc2 {[%emt 0:00:48] White mates.} Kxg6 {[%emt 0:00:04] KR-KB} 75. Kb5 {[%emt 0:01:47]} Kf5 {[%emt 0:00:23]} 76. b7 {[%emt 0:00:20]} Rh8 {[%emt 0:00:39]} 77. Kb6 {[%emt 0:01:01]} Kf4 {[%emt 0:00:16] [#]} 78. Ba4 $1 {[%emt 0:00:20]} Ke3 {[%emt 0:01:42]} 79. Bb5 {[%emt 0:00:16]} Kd2 {[%emt 0:00:38]} 80. Ka7 {[%emt 0:00:09]} Kc3 {[%emt 0:00:05]} 81. b8=Q {[%emt 0:00:07] Never resign too early!   Weighted Error Value: White=0.11 (very precise) /Black=0.13 (very precise) .  Loses game:     	---       	Black=1      Mistake:       	White=5     	Black=8      Inaccurate:     	White=3     	Black=2      OK:         	White=25    	Black=22     Best:        	White=6     	Black=1      Strong:       	White=4     	---} 1-0

[Event "SixDays GM March 2024"]
[Site "Budapest"]
[Date "2024.04.03"]
[Round "7.4"]
[White "Konyves, Almos"]
[Black "Mihok, Oliver"]
[Result "1/2-1/2"]
[ECO "E91"]
[WhiteElo "2306"]
[BlackElo "2549"]
[Annotator "TA"]
[PlyCount "118"]
[EventDate "2024.03.26"]
[EventType "tourn"]
[EventCountry "HUN"]
[SourceTitle "playchess.com"]
[Source "ChessBase"]
[SourceQuality "1"]
[TimeControl "5400+30"]

{[%evp 22,118,54,33,62,58,63,54,47,57,58,27,26,16,18,16,52,49,51,40,50,51,35,11,11,10,13,14,15,14,27,25,27,0,0,-18,-18,-12,-13,-13,-13,-12,-11,-12,-4,-5,-4,-4,-4,-4,-4,-14,-4,-7,-4,-7,-7,-14,-14,-14,-14,-14,-14,-14,-14,-14,-14,-14,-14,-14,-14,-14,-7,-14,-14,-14,-7,-14,-7,-7,-7,-14,-14,-14,-14,-14,-7,-7,-7,-14,-7,-14,-14,-14,0,0,0,-14,0]} 1. d4 {[%emt 0:00:04]} Nf6 {[%emt 0:00:06]} 2. c4 {[%emt 0:00:10]} g6 {[%emt 0:00:05]} 3. Nc3 {[%emt 0:00:03]} Bg7 {[%emt 0:00:05]} 4. e4 {[%emt 0:00:05]} d6 {[%emt 0:00:05]} 5. Be2 {[%emt 0:00:10]} O-O {[%emt 0:00:08]} 6. Nf3 {[%emt 0:00:02]} Nbd7 {[%emt 0:00:34]} 7. Be3 {[%emt 0:00:06]} e5 {[%emt 0:00:07]} 8. d5 {[%emt 0:00:03]} Ng4 {[%emt 0:00:11]} 9. Bg5 {[%emt 0:00:51][%cal Be3g5,Bg5h4,Bh4g3][%mdl 32]} f6 {[%emt 0:00:07]} 10. Bh4 {[%emt 0:00:03]} Nh6 {[%emt 0:00:22]} 11. Nd2 {[%emt 0:00:12]} g5 {[%emt 0:00:15]} 12. Bg3 {[%emt 0:00:04]} f5 {[%emt 0:00:17] [#] ...f4 is the strong threat.} 13. f3 {[%emt 0:00:31] White is more active.} Nf6 {[%emt 0:01:05]} 14. h3 {[%emt 0:00:53]} c5 {[%emt 0:01:00] White is slightly better.} 15. Bf2 {[%emt 0:03:32]} f4 {[%emt 0:15:05]} 16. Qb1 {[%emt 0:02:50]} Nf7 {[%emt 0:01:04]} 17. b4 {[%emt 0:00:09]} b6 {[%emt 0:01:54]} 18. a4 {[%emt 0:01:18]} h5 {[%emt 0:06:41]} 19. a5 {[%emt 0:01:32]} Bd7 {[%emt 0:00:58]} 20. Kd1 {[%emt 0:00:34]} Rb8 {[%emt 0:08:53]} 21. axb6 {[%emt 0:06:56]} axb6 {[%emt 0:00:33]} 22. b5 {[%emt 0:07:46]} Ra8 {[%emt 0:08:26]} 23. Kc2 {[%emt 0:00:50]} Qc8 {[%emt 0:02:01]} 24. Rxa8 {[%emt 0:08:27]} Qxa8 {[%emt 0:00:05]} 25. Qa1 {[%emt 0:00:05]} Rb8 {[%emt 0:01:49]} 26. Qxa8 {[%emt 0:07:00]} Rxa8 {[%emt 0:00:05]} 27. Kb2 {[%emt 0:00:03]} Bf8 {[%emt 0:03:34] The position is equal.} 28. Ra1 {[%emt 0:00:50]} Rxa1 {[%emt 0:00:27]} 29. Kxa1 {[%emt 0:00:03] aiming for Na4.} Be7 {[%emt 0:00:11]} 30. Kb2 {[%emt 0:03:31]} Bd8 {[%emt 0:01:50]} 31. Kc2 {[%emt 0:00:32]} Kg7 {[%emt 0:03:28]} 32. Kd3 {[%emt 0:00:30]} g4 {[%emt 0:01:46]} 33. hxg4 {[%emt 0:13:02]} hxg4 {[%emt 0:00:07]} 34. Na4 {[%emt 0:08:52]} g3 {[%emt 0:08:32]} 35. Be1 {[%emt 0:04:09]} Ng5 {[%emt 0:02:09]} 36. Bf1 {[%emt 0:01:15]} Be8 {[%emt 0:01:48]} 37. Nc3 {[%emt 0:01:10]} Bh5 {[%emt 0:00:57]} 38. Ne2 {[%emt 0:02:08]} Nfh7 {[%emt 0:03:06]} 39. Ng1 {[%emt 0:00:29]} Nf8 {[%emt 0:00:33]} 40. Nb1 {[%emt 0:01:07]} Ng6 {[%emt 0:00:14]} 41. Bc3 {[%emt 0:00:42]} Nh4 {[%emt 0:04:55][%cal Rh4f3] White must now prevent ...Nhxf3!} 42. Nd2 {[%emt 0:00:28]} Bf6 {[%emt 0:01:59]} 43. Bb2 {[%emt 0:01:11]} Kf7 {[%emt 0:00:55]} 44. Bc3 {[%emt 0:00:14]} Ke7 {[%emt 0:00:10]} 45. Bb2 {[%emt 0:00:33]} Bg7 {[%emt 0:00:24]} 46. Bc3 {[%emt 0:00:47]} Kd7 {[%emt 0:00:59]} 47. Bb2 {[%emt 0:00:32]} Bh6 {[%emt 0:02:36]} 48. Bc3 {[%emt 0:02:08]} Bg6 {[%emt 0:00:59]} 49. Bb2 {[%emt 0:01:14]} Bg7 {[%emt 0:01:51]} 50. Bc3 {[%emt 0:00:03]} Bf6 {[%emt 0:00:13]} 51. Bb2 {[%emt 0:00:18]} Ke7 {[%emt 0:01:54]} 52. Bc3 {[%emt 0:00:15]} Be8 {[%emt 0:00:33]} 53. Bb2 {[%emt 0:00:37]} Bd7 {[%emt 0:00:15]} 54. Bc3 {[%emt 0:00:45]} Kf7 {[%emt 0:01:00]} 55. Bb2 {[%emt 0:00:05]} Kg6 {[%emt 0:00:21]} 56. Bc3 {[%emt 0:01:04]} Kh5 {[%emt 0:00:48]} 57. Ke2 {[%emt 0:01:19]} Be7 {[%emt 0:03:25]} 58. Kd3 $1 {[%emt 0:00:25]} Bd8 {[%emt 0:01:43]} 59. Ke2 {[%emt 0:01:00]} Be7 {[%emt 0:03:05] Weighted Error Value: White=0.04 (flawless) /Black=0.03 (flawless) .  Inaccurate:     	White=2     	Black=1      OK:         	White=18    	Black=20     Strong:       	White=1     	---} 1/2-1/2

[Event "SixDays GM March 2024"]
[Site "Budapest"]
[Date "2024.04.03"]
[Round "7.5"]
[White "Pribelszky, Bence"]
[Black "Juhasz, Agoston"]
[Result "0-1"]
[ECO "A09"]
[WhiteElo "2354"]
[BlackElo "2406"]
[Annotator "TA"]
[PlyCount "56"]
[EventDate "2024.03.26"]
[EventType "tourn"]
[EventCountry "HUN"]
[SourceTitle "playchess.com"]
[Source "ChessBase"]
[SourceQuality "1"]
[TimeControl "5400+30"]

{[%evp 9,56,-18,-7,-4,-9,-11,0,0,0,0,0,0,0,0,0,0,0,0,0,0,0,-164,-166,-155,-157,-527,-491,-630,-578,-691,-666,-1075,-989,-29983,-29984,-29985,-29986,-29986,-29987,-29995,-29979,-2704,-2110,-1436,-1453,-1430,-1460,-1226,-1198]} 1. Nf3 {[%emt 0:07:39]} d5 {[%emt 0:00:26]} 2. c4 {[%emt 0:01:00]} d4 {[%emt 0:01:28]} 3. e3 {[%emt 0:01:34]} c5 {[%emt 0:01:23]} 4. exd4 {[%emt 0:07:21]} cxd4 {[%emt 0:00:04]} 5. g3 {[%emt 0:00:04]} Nc6 {[%emt 0:02:01]} 6. Bg2 {[%emt 0:00:07]} e5 {[%emt 0:02:58] Hoping for ...e4.} 7. O-O {[%emt 0:00:13]} Bd6 {[%emt 0:01:21]} 8. b4 {[%emt 0:22:13] The position is equal.} Nxb4 {[%emt 0:07:32]} 9. Nxe5 $1 {[%emt 0:01:46]} Bxe5 {[%emt 0:14:10]} 10. Qa4+ {[%emt 0:00:21]} Nc6 $1 {[%emt 0:00:23]} 11. Bxc6+ {[%emt 0:29:14]} bxc6 {[%emt 0:00:07]} 12. Qxc6+ {[%emt 0:00:04]} Bd7 {[%emt 0:00:11]} 13. Qe4 {[%emt 0:00:04]} f6 {[%emt 0:02:13] ...Ne7 would now be deadly.} 14. f4 {[%emt 0:00:07]} Bh3 $1 {[%emt 0:05:49]} 15. Rf2 {[%emt 0:13:54] [#]} (15. fxe5 $11 Bxf1 16. exf6+ Kf7 17. fxg7 Kxg7 18. Qg4+ Kf8 19. Ba3+ Kf7 20. Qh5+ Kg7 21. Qg4+ Kf7 22. Qh5+ Kg7 23. Nc3 Bxc4 24. Ne4) 15... Nh6 $1 $19 {[%emt 0:02:33][%cal Oe8g8] White must now prevent ...0-0!} 16. Ba3 {[%emt 0:02:39] [#]} Ng4 {[%emt 0:05:15]} ({Don't do} 16... Bf5 17. Qb7 Bc7 18. Re2+ Kf7 19. Re7+ Kg6 20. Rxc7 $11 (20. Qxc7 $2 {loses.} Qxc7 21. Rxc7 Rhe8 $19)) 17. Rf3 $2 {[%emt 0:04:27] [#] This move loses the game for White.} (17. fxe5 $17 Nxf2 18. Qb7) 17... Kf7 $1 {[%emt 0:05:27]} 18. fxe5 {[%emt 0:00:09] Threatens to win with e6+.} (18. Bc5 Rc8) 18... Re8 {[%emt 0:00:56]} 19. Qxh7 {[%emt 0:02:04]} Nxe5 {[%emt 0:01:07]} 20. Rb3 {[%emt 0:01:02]} Qd7 {[%emt 0:02:26][%cal Oe5f3] Strongly threatening ...Nf3+!} 21. Bc5 {[%emt 0:04:25] [#]} Nf3+ $1 {[%emt 0:06:03][%mdl 512]} 22. Kf2 {[%emt 0:00:22]} Ng5 {[%emt 0:00:46]} 23. Qh5+ {[%emt 0:00:40]} g6 {[%emt 0:00:10]} 24. Qh4 {[%emt 0:00:29]} Qf5+ {[%emt 0:00:49]} 25. Qf4 {[%emt 0:00:08]} Ne4+ {[%emt 0:00:37] Black is clearly winning.} 26. Kg1 {[%emt 0:00:14]} Nxc5 {[%emt 0:00:51]} 27. Na3 {[%emt 0:00:09]} Qxf4 {[%emt 0:00:46]} 28. gxf4 {[%emt 0:00:03]} Nxb3 {[%emt 0:00:05] Weighted Error Value: White=1.00/Black=0.37.  Loses game:     	White=2     	---        Inaccurate:     	White=1     	---        OK:         	White=4     	Black=5      Best:        	White=3     	Black=1      Strong:       	White=1     	Black=4} 0-1

[Event "SixDays GM March 2024"]
[Site "Budapest"]
[Date "2024.04.03"]
[Round "8.1"]
[White "Horvath, Adam"]
[Black "Juhasz, Agoston"]
[Result "0-1"]
[ECO "B50"]
[WhiteElo "2440"]
[BlackElo "2406"]
[Annotator "TA"]
[PlyCount "68"]
[EventDate "2024.03.26"]
[EventType "tourn"]
[EventCountry "HUN"]
[SourceTitle "playchess.com"]
[Source "ChessBase"]
[SourceQuality "1"]
[TimeControl "5400+30"]

{[%evp 9,68,-16,-9,-27,-15,-14,-4,-36,0,-6,0,-14,-13,-14,-7,-17,-11,-52,-24,-26,-8,-50,-29,-73,-83,-152,-85,-140,-141,-123,-148,-138,-140,-186,-117,-117,-122,-119,-80,-255,-254,-532,-525,-525,-537,-714,-710,-672,-591,-743,-735,-718,-687,-639,-689,-630,-426,-1764,-1013,-6342,-6087]} 1. e4 {[%emt 0:07:32]} c5 {[%emt 0:00:11]} 2. Nf3 {[%emt 0:00:43]} d6 {[%emt 0:00:08]} 3. c3 {[%emt 0:04:16]} Nf6 {[%emt 0:00:10]} 4. h3 {[%emt 0:00:23]} Nc6 {[%emt 0:01:14]} 5. d3 {[%emt 0:05:58]} e5 {[%emt 0:05:34]} 6. Be2 {[%emt 0:06:50]} Be7 {[%emt 0:01:33]} 7. O-O {[%emt 0:00:15]} O-O {[%emt 0:00:06]} 8. Re1 {[%emt 0:02:51] The position is equal.} Re8 {[%emt 0:07:15]} 9. Bf1 {[%emt 0:00:10]} Bf8 {[%emt 0:00:35]} 10. a3 {[%emt 0:01:25]} d5 {[%emt 0:06:53]} 11. exd5 {[%emt 0:07:45]} Nxd5 {[%emt 0:00:17]} 12. b4 {[%emt 0:10:59]} a6 {[%emt 0:05:40]} 13. Ra2 {[%emt 0:11:55]} Bf5 {[%emt 0:00:07]} 14. Rae2 {[%emt 0:03:06][%cal Rf3e5]} cxb4 {[%emt 0:24:49]} 15. axb4 {[%emt 0:01:08]} Qf6 {[%emt 0:05:00]} 16. g3 {[%emt 0:10:09]} h6 $1 {[%emt 0:03:37]} 17. Rc2 {[%emt 0:16:24]} (17. Bb2 $142) 17... Rad8 {[%emt 0:04:40]} (17... e4 $142 18. Rce2 Nxc3 19. Nxc3 Qxc3 20. dxe4 Be6 (20... Qxf3 21. Bg2 $17)) 18. Nbd2 {[%emt 0:00:23] [#]} (18. Rd2 $142) 18... e4 $1 $36 {[%emt 0:07:37][%mdl 2560] White is under strong pressure. Black is much more active.} 19. dxe4 {[%emt 0:00:15]} Nxc3 {[%emt 0:03:01]} 20. Rxc3 {[%emt 0:01:20]} Qxc3 {[%emt 0:00:43]} 21. Re3 {[%emt 0:02:01] [#]} (21. b5 $17 Rxe4 22. bxc6 Qxc6 23. Bb2) 21... Qxb4 {[%emt 0:03:37]} (21... Qf6 $1 $19 {aiming for ...Be6.} 22. exf5 Rxe3 (22... Bxb4 23. Rxe8+ Rxe8 24. Qc2 $11) 23. fxe3 Qc3 (23... Bxb4 24. Qc2 $17) (23... Nxb4 24. Nd4 $17) (23... Qxf5 24. b5 $17)) 22. Ba3 {[%emt 0:00:38] [#]} (22. Rb3 $2 Qxe4 23. Bb2 b5 $19) 22... Qa5 {[%emt 0:01:38]} 23. Bxf8 {[%emt 0:00:04] Hoping for Ra3.} Bxe4 {[%emt 0:04:13]} (23... Rxf8 $6 24. exf5 Qxf5 25. Qc1 $15) 24. Rxe4 {[%emt 0:00:17] This costs White the game.} (24. Qe1 $17 {only move.} Nd4 (24... Bxf3 $2 25. Rxe8 Rxe8 26. Qxe8 $18) 25. Nxd4 Rxd4 (25... Rxf8 $2 26. Rxe4 Qc3 27. N2b3 $18) 26. Nb3 Qxe1 27. Rxe1) 24... Rxe4 $19 {[%emt 0:00:44]} ({Stronger than} 24... Kxf8 25. Rf4 $11) ({Weaker is} 24... Rxf8 25. Qc2 $11) 25. Qc2 $2 {[%emt 0:00:04]} (25. Bc5 {was the only chance.}) 25... Ra4 {[%emt 0:02:38] Black is clearly winning.} 26. Bxg7 {[%emt 0:02:26]} Kxg7 {[%emt 0:01:10]} 27. Qb2+ {[%emt 0:00:04]} Kg8 {[%emt 0:01:00]} 28. Qxb7 {[%emt 0:00:04]} Nd4 {[%emt 0:01:34]} 29. Qe7 {[%emt 0:04:42]} Nxf3+ {[%emt 0:01:31]} 30. Nxf3 {[%emt 0:00:05]} Ra1 {[%emt 0:00:40]} 31. Kg2 {[%emt 0:00:03] [#]} Rxf1 {[%emt 0:04:47]} 32. Kxf1 {[%emt 0:00:04]} Rd1+ {[%emt 0:00:18]} 33. Kg2 {[%emt 0:00:04]} (33. Ke2 $142 Rc1 34. Qf6) 33... Qd5 {[%emt 0:01:07]} 34. g4 {[%emt 0:02:33]} Rd3 {[%emt 0:00:35] Weighted Error Value: White=0.87/Black=0.25 (precise) .  Loses game:     	White=1     	---        Mistake:       	White=4     	Black=2      Inaccurate:     	White=6     	Black=3      OK:         	White=7     	Black=5      Best:        	White=2     	Black=2      Strong:       	---       	Black=1} 0-1